fUST/lending_fUST_20260105
["ID","MTS","AMOUNT","RATE_DAILY","PERIOD"]
[400434776,1767550232040,-250.0,0.00010193,2]
[400434777,1767550232050,-250.0,0.00010193,2]
[400434778,1767550232059,-2674.60743027,0.00010193,2]
[400434779,1767550232068,-250.0,0.00010193,2]
[400434780,1767550232080,-250.0,0.00010193,2]
[400434781,1767550232091,-250.0,0.00010193,2]
[400434782,1767550232101,-250.0,0.00010193,2]
[400434783,1767550232110,-250.0,0.00010193,2]
[400434784,1767550232121,-250.0,0.00010193,2]
[400434785,1767550232131,-250.0,0.00010193,2]
[400434786,1767550232143,-250.0,0.00010193,2]
[400434787,1767550232153,-160.0,0.00010193,2]
[400434788,1767550232163,-250.0,0.00010193,2]
[400434789,1767550232172,-250.0,0.00010193,2]
[400434790,1767550232182,-250.0,0.00010193,2]
[400434791,1767550232191,-250.0,0.00010193,2]
[400434792,1767550232201,-160.49087914,0.00010193,2]
[400434793,1767550232211,-250.0,0.00010193,2]
[400434794,1767550232220,-250.0,0.00010193,2]
[400434795,1767550232230,-250.0,0.00010193,2]
[400434796,1767550232239,-250.0,0.00010193,2]
[400434797,1767550232249,-250.0,0.00010193,2]
[400434798,1767550232258,-250.0,0.00010193,2]
[400434799,1767550232267,-16207.6394392,0.00010193,2]
[400434800,1767550232277,-250.0,0.00010193,2]
[400434801,1767550232287,-250.0,0.00010193,2]
[400434802,1767550232296,-250.0,0.00010193,2]
[400434803,1767550232306,-151.0,0.00010193,2]
[400434804,1767550232315,-151.0,0.00010193,2]
[400434805,1767550232329,-250.0,0.00010193,2]
[400434806,1767550232338,-151.0,0.00010193,2]
[400434807,1767550232348,-250.0,0.00010193,2]
[400434808,1767550232357,-151.0,0.00010193,2]
[400434809,1767550232367,-151.0,0.00010193,2]
[400434810,1767550232377,-250.0,0.00010193,2]
[400434811,1767550232387,-151.0,0.00010193,2]
[400434812,1767550232396,-151.0,0.00010193,2]
[400434813,1767550232406,-250.0,0.00010193,2]
[400434814,1767550232416,-151.0,0.00010193,2]
[400434815,1767550232426,-151.0,0.00010193,2]
[400434816,1767550232435,-250.0,0.00010193,2]
[400434817,1767550232445,-151.0,0.00010193,2]
[400434818,1767550232455,-151.0,0.00010193,2]
[400434819,1767550232464,-250.0,0.00010193,2]
[400434820,1767550232473,-151.0,0.00010193,2]
[400434821,1767550232483,-151.0,0.00010193,2]
[400434822,1767550232492,-250.0,0.00010193,2]
[400434823,1767550232502,-151.0,0.00010193,2]
[400434824,1767550232511,-151.0,0.00010193,2]
[400434825,1767550232520,-250.0,0.00010193,2]
[400434826,1767550232530,-151.0,0.00010193,2]
[400434827,1767550232540,-151.0,0.00010193,2]
[400434828,1767550232550,-151.0,0.00010193,2]
[400434829,1767550232560,-151.0,0.00010193,2]
[400434830,1767550232571,-586.14,0.000102,2]
[400434831,1767550232580,-2399.08518334,0.00010241,2]
[400434832,1767550232590,-586.14,0.000104,2]
[400434833,1767550232600,-2399.08518334,0.00010466,2]
[400434834,1767550232610,-200.0,0.00010515,2]
[400434835,1767550232621,-198.0,0.00010515,2]
[400434836,1767550232632,-200.55971566,0.00010515,2]
[400434837,1767550232643,-206.6926529,0.00010515,2]
[400434838,1767550232653,-201.56480436,0.00010515,2]
[400434839,1767550232666,-500.0,0.00010515,2]
[400434840,1767550232679,-151.0,0.00010564,2]
[400434841,1767550232690,-586.14,0.000106,2]
[400434842,1767550232700,-200.0,0.00010604,2]
[400434843,1767550232709,-201.35509354,0.00010652,2]
[400434844,1767550232719,-500.0,0.00010652,2]
[400434845,1767550232730,-194.89,0.000107,2]
[400434846,1767550232740,-574.12855637,0.00010741,2]
[400434847,1767550232750,-2773.56790519,0.00010741,2]
[400434848,1767550232759,-500.0,0.00010789,2]
[400434849,1767550232771,-300.0,0.00010789,2]
[400434850,1767550232781,-300.0,0.00010789,2]
[400434851,1767550232790,-300.0,0.00010789,2]
[400434852,1767550232800,-300.0,0.00010789,2]
[400434853,1767550232809,-300.0,0.00010789,2]
[400434854,1767550232819,-300.0,0.00010789,2]
[400434855,1767550232829,-300.0,0.00010789,2]
[400434856,1767550232838,-300.0,0.00010789,2]
[400434857,1767550232848,-300.0,0.00010789,2]
[400434858,1767550232858,-300.0,0.00010789,2]
[400434859,1767550232867,-300.0,0.00010789,2]
[400434860,1767550232877,-300.0,0.00010789,2]
[400434861,1767550232886,-300.0,0.00010789,2]
[400434862,1767550232896,-300.0,0.00010789,2]
[400434863,1767550232906,-300.0,0.00010789,2]
[400434864,1767550232918,-600.0,0.00010789,2]
[400434865,1767550232928,-586.14,0.000108,2]
[400434866,1767550232937,-3891.1630361,0.0001094,2]
[400434867,1767550232947,-999.0,0.00010959,2]
[400434868,1767550232958,-500.0,0.00010959,2]
[400434869,1767550232967,-500.0,0.00010959,2]
[400434870,1767550232977,-500.0,0.00010959,2]
[400434871,1767550232987,-500.0,0.00010959,2]
[400434872,1767550232998,-195.18641334,0.00010959,2]
[400434873,1767550233008,-420.0,0.00010962,2]
[400434874,1767550233018,-586.14,0.00011,2]
[400434875,1767550233027,-200.08324581,0.00011,2]
[400434876,1767550233037,-166.0,0.00011,2]
[400434877,1767550233046,-153.76138875,0.00011,2]
[400434878,1767550233056,-166.0,0.00011,2]
[400434879,1767550233065,-152.0,0.00011,2]
[400434880,1767550233074,-166.0,0.00011,2]
[400434881,1767550233083,-152.0,0.00011,2]
[400434882,1767550233093,-152.0,0.00011,2]
[400434883,1767550233102,-163.0,0.00011,2]
[400434884,1767550233113,-163.0,0.00011,2]
[400434885,1767550233122,-185.22374852,0.00011,2]
[400434886,1767550233132,-500.0,0.00011028,2]
[400434887,1767550233142,-868.2358314,0.00011116,2]
[400434888,1767550233152,-936.5523147,0.00011252,2]
[400434889,1767550233162,-595.37131296,0.00011289,2]
[400434890,1767550233171,-357.37586378,0.00011633,2]
[400434891,1767550233181,-617.40005154,0.00011837,2]
[400434892,1767550233191,-1682.33089222,0.00011868,4]
[400434893,1767550233200,-720.0,0.00011868,2]
[400434894,1767550233210,-418.47139943,0.00011983,2]
[400434895,1767550233219,-404.0,0.00012058,2]
[400434896,1767550233229,-898.0,0.000123,2]
[400434897,1767550233240,-191.9,0.00012329,2]
[400434898,1767550233249,-159.91,0.00012329,2]
[400434899,1767550233259,-799.6,0.00012329,2]
[400434900,1767550233269,-151.0,0.00012329,2]
[400434901,1767550233279,-995.19665272,0.00012329,2]
[400434902,1767550233288,-995.19665272,0.00012329,2]
[400434903,1767550233298,-995.19665272,0.00012329,2]
[400434904,1767550233308,-995.19665272,0.00012329,2]
[400434905,1767550233317,-995.19665272,0.00012329,2]
[400434906,1767550233328,-995.19665272,0.00012329,2]
[400434907,1767550233337,-995.19665272,0.00012329,2]
[400434908,1767550233346,-995.19665272,0.00012329,2]
[400434909,1767550233356,-995.19665272,0.00012329,2]
[400434910,1767550233366,-995.19665272,0.00012329,2]
[400434911,1767550233375,-995.19665272,0.00012329,2]
[400434912,1767550233385,-995.19665272,0.00012329,2]
[400434913,1767550233395,-995.19665272,0.00012329,2]
[400434914,1767550233405,-995.19665272,0.00012329,2]
[400434915,1767550233415,-995.19665272,0.00012329,2]
[400434916,1767550233424,-995.19665272,0.00012329,2]
[400434917,1767550233434,-995.19665272,0.00012329,2]
[400434918,1767550233444,-995.19665272,0.00012329,2]
[400434919,1767550233454,-995.19665272,0.00012329,2]
[400434920,1767550233464,-995.19665272,0.00012329,2]
[400434921,1767550233474,-995.19665272,0.00012329,2]
[400434922,1767550233484,-995.19665272,0.00012329,2]
[400434923,1767550233493,-995.19665272,0.00012329,2]
[400434924,1767550233503,-995.19665272,0.00012329,2]
[400434925,1767550233512,-995.19665272,0.00012329,2]
[400434926,1767550233522,-995.19665272,0.00012329,2]
[400434927,1767550233532,-995.19665272,0.00012329,2]
[400434928,1767550233542,-995.19665272,0.00012329,2]
[400434929,1767550233552,-995.19665272,0.00012329,2]
[400434930,1767550233562,-995.19665272,0.00012329,2]
[400434931,1767550233572,-995.19665272,0.00012329,2]
[400434932,1767550233582,-995.19665272,0.00012329,2]
[400434933,1767550233591,-995.19665272,0.00012329,2]
[400434934,1767550233601,-995.19665272,0.00012329,2]
[400434935,1767550233611,-995.19665272,0.00012329,2]
[400434936,1767550233621,-995.19665272,0.00012329,2]
[400434937,1767550233631,-995.19665272,0.00012329,2]
[400434938,1767550233641,-995.19665272,0.00012329,2]
[400434939,1767550233651,-995.19665272,0.00012329,2]
[400434940,1767550233661,-995.19665272,0.00012329,2]
[400434941,1767550233670,-995.19665272,0.00012329,2]
[400434942,1767550233691,-995.19665272,0.00012329,2]
[400434943,1767550233702,-995.19665272,0.00012329,2]
[400434944,1767550233712,-995.19665272,0.00012329,2]
[400434945,1767550233723,-995.19665272,0.00012329,2]
[400434946,1767550233733,-995.19665272,0.00012329,2]
[400434947,1767550233744,-995.19665272,0.00012329,2]
[400434948,1767550233755,-995.19665272,0.00012329,2]
[400434949,1767550233764,-995.19665272,0.00012329,2]
[400434950,1767550233774,-995.19665272,0.00012329,2]
[400434951,1767550233784,-995.19665272,0.00012329,2]
[400434952,1767550233794,-995.19665272,0.00012329,2]
[400434953,1767550233804,-995.19665272,0.00012329,2]
[400434954,1767550233814,-995.19665272,0.00012329,2]
[400434955,1767550233823,-995.19665272,0.00012329,2]
[400434956,1767550233833,-995.19665272,0.00012329,2]
[400434957,1767550233842,-995.19665272,0.00012329,2]
[400434958,1767550233852,-995.19665272,0.00012329,2]
[400434959,1767550233862,-995.19665272,0.00012329,2]
[400434960,1767550233871,-995.19665272,0.00012329,2]
[400434961,1767550233881,-995.19665272,0.00012329,2]
[400434962,1767550233890,-995.19665272,0.00012329,2]
[400434963,1767550233900,-995.19665273,0.00012329,2]
[400434964,1767550233911,-995.19665273,0.00012329,2]
[400434965,1767550233921,-995.19665273,0.00012329,2]
[400434966,1767550233930,-995.19665273,0.00012329,2]
[400434967,1767550233939,-995.19665273,0.00012329,2]
[400434968,1767550233949,-995.19665273,0.00012329,2]
[400434969,1767550233959,-995.19665273,0.00012329,2]
[400434970,1767550233969,-995.19665273,0.00012329,2]
[400434971,1767550233978,-995.19665273,0.00012329,2]
[400434972,1767550233987,-995.19665273,0.00012329,2]
[400434973,1767550233997,-995.19665273,0.00012329,2]
[400434974,1767550234006,-995.19665273,0.00012329,2]
[400434975,1767550234016,-995.19665273,0.00012329,2]
[400434976,1767550234026,-995.19665273,0.00012329,2]
[400434977,1767550234036,-995.19665273,0.00012329,2]
[400434978,1767550234046,-995.19665273,0.00012329,2]
[400434979,1767550234055,-995.19665273,0.00012329,2]
[400434980,1767550234065,-995.19665273,0.00012329,2]
[400434981,1767550234074,-995.19665273,0.00012329,2]
[400434982,1767550234083,-995.19665273,0.00012329,2]
[400434983,1767550234093,-995.19665273,0.00012329,2]
[400434984,1767550234102,-995.19665273,0.00012329,2]
[400434985,1767550234112,-995.19665273,0.00012329,2]
[400434986,1767550234121,-995.19665273,0.00012329,2]
[400434987,1767550234130,-995.19665273,0.00012329,2]
[400434988,1767550234140,-995.19665273,0.00012329,2]
[400434989,1767550234149,-995.19665259,0.00012329,2]
[400434990,1767550234159,-640.24385345,0.00012385,2]
[400434991,1767550234168,-936.5523147,0.00012537,2]
[400434992,1767550234179,-1377.39580461,0.00012642,2]
[400434993,1767550234188,-3472.73924989,0.0001287,2]
[400434994,1767550234198,-6135.3441994,0.000129,2]
[400434995,1767550234211,-663.93287602,0.00012933,2]
[400434996,1767550234221,-2791.20466604,0.00013,7]
[400434997,1767550234231,-7137.10260308,0.00013,2]
[400434998,1767550234241,-864.0,0.00013055,2]
[400434999,1767550234252,-151.0,0.000131,2]
[400435000,1767550234476,-1041.66666667,0.00013262,2]
[400435001,1767550234486,-849.99999901,0.0001327,2]
[400435002,1767550234495,-500.0,0.00013273,2]
[400435003,1767550234505,-500.0,0.00013273,2]
[400435004,1767550234516,-500.0,0.00013273,2]
[400435005,1767550234527,-500.0,0.00013273,2]
[400435006,1767550234537,-500.0,0.00013273,2]
[400435007,1767550234547,-500.66535863,0.00013273,2]
[400435008,1767550234556,-500.0,0.00013273,2]
[400435009,1767550234565,-500.0,0.00013273,2]
[400435010,1767550234575,-500.33450546,0.00013273,2]
[400435011,1767550234586,-500.0,0.00013273,2]
[400435012,1767550234596,-500.0,0.00013273,2]
[400435013,1767550234606,-500.0,0.00013273,2]
[400435014,1767550234617,-500.0,0.00013273,2]
[400435015,1767550234628,-500.0,0.00013273,2]
[400435016,1767550234637,-500.0,0.00013273,2]
[400435017,1767550234647,-500.0,0.00013273,2]
[400435018,1767550234657,-500.0,0.00013273,2]
[400435019,1767550234666,-500.0,0.00013273,2]
[400435020,1767550234677,-530.08399995,0.00013273,2]
[400435021,1767550234690,-500.0,0.00013273,2]
[400435022,1767550234699,-500.0,0.00013273,2]
[400435023,1767550234708,-500.0,0.00013273,2]
[400435024,1767550234719,-520.29648728,0.00013273,2]
[400435025,1767550234729,-500.0,0.00013273,2]
[400435026,1767550234738,-500.0,0.00013273,2]
[400435027,1767550234749,-500.0,0.00013273,2]
[400435028,1767550234759,-500.0,0.00013273,2]
[400435029,1767550234769,-500.0,0.00013273,2]
[400435030,1767550234779,-500.0,0.00013273,2]
[400435031,1767550234789,-500.87675114,0.00013273,2]
[400435032,1767550234799,-500.78161845,0.00013273,2]
[400435033,1767550234808,-500.0,0.00013273,2]
[400435034,1767550234818,-500.39596396,0.00013273,2]
[400435035,1767550234828,-500.0,0.00013273,2]
[400435036,1767550234838,-500.0,0.00013273,2]
[400435037,1767550234847,-500.0,0.00013273,2]
[400435038,1767550234858,-268.6561647,0.00013273,2]
[400435039,1767550234868,-500.32554023,0.00013273,2]
[400435040,1767550234878,-500.0,0.00013273,2]
[400435041,1767550234888,-500.0,0.00013273,2]
[400435042,1767550234897,-205.55096652,0.00013273,2]
[400435043,1767550234907,-500.0,0.00013273,2]
[400435044,1767550234919,-500.0,0.00013273,2]
[400435045,1767550234929,-500.0,0.00013273,2]
[400435046,1767550234939,-500.0,0.00013273,2]
[400435047,1767550234948,-500.0,0.00013273,2]
[400435048,1767550234959,-500.0,0.00013273,2]
[400435049,1767550234969,-500.0,0.00013273,2]
[400435050,1767550234979,-500.0,0.00013273,2]
[400435051,1767550234989,-500.0,0.00013273,2]
[400435052,1767550234998,-500.45877033,0.00013273,2]
[400435053,1767550235008,-500.0,0.00013273,2]
[400435054,1767550235017,-500.0,0.00013273,2]
[400435055,1767550235028,-494.22531754,0.00013273,2]
[400435056,1767550235037,-500.0,0.00013273,2]
[400435057,1767550235047,-159.29284371,0.00013273,2]
[400435058,1767550235057,-500.0,0.00013273,2]
[400435059,1767550235066,-500.0,0.00013273,2]
[400435060,1767550235075,-500.0,0.00013273,2]
[400435061,1767550235085,-688.49839244,0.00013481,2]
[400435062,1767550235094,-500.0,0.00013698,2]
[400435063,1767550235103,-500.0,0.00013698,2]
[400435064,1767550235113,-500.0,0.00013698,2]
[400435065,1767550235122,-500.0,0.00013698,2]
[400435066,1767550235132,-525.39041096,0.00013698,2]
[400435067,1767550235141,-1000.0,0.00013698,2]
[400435068,1767550235151,-1000.0,0.00013698,2]
[400435069,1767550235162,-1000.0,0.00013698,2]
[400435070,1767550235171,-1000.0,0.00013698,2]
[400435071,1767550235181,-1000.0,0.00013698,2]
[400435072,1767550235190,-1000.0,0.00013698,2]
[400435073,1767550235200,-1000.0,0.00013698,2]
[400435074,1767550235212,-1013.52750033,0.00013698,2]
[400435075,1767550235221,-500.0,0.00013698,2]
[400435076,1767550235230,-500.0,0.00013698,2]
[400435077,1767550235239,-500.0,0.00013698,2]
[400435078,1767550235249,-500.0,0.00013698,2]
[400435079,1767550235259,-500.0,0.00013698,2]
[400435080,1767550235268,-500.0,0.00013698,2]
[400435081,1767550235278,-500.0,0.00013698,2]
[400435082,1767550235287,-252.42483345,0.00013698,2]
[400435083,1767550235297,-513.04283332,0.00013698,2]
[400435084,1767550235307,-500.0,0.00013698,2]
[400435085,1767550235316,-500.0,0.00013698,2]
[400435086,1767550235326,-241.78088945,0.00013698,2]
[400435087,1767550235335,-466.89772029,0.00013698,2]
[400435088,1767550235345,-463.44106234,0.00013698,2]
[400435089,1767550235354,-500.0,0.00013698,2]
[400435090,1767550235364,-500.0,0.00013698,2]
[400435091,1767550235374,-500.0,0.00013698,2]
[400435092,1767550235383,-500.0,0.00013698,2]
[400435093,1767550235392,-500.0,0.00013698,2]
[400435094,1767550235401,-500.0,0.00013698,2]
[400435095,1767550235411,-500.0,0.00013698,2]
[400435096,1767550235420,-500.0,0.00013698,2]
[400435097,1767550235430,-500.0,0.00013698,2]
[400435098,1767550235439,-500.0,0.00013698,2]
[400435099,1767550235449,-500.0,0.00013698,2]
[400435100,1767550235460,-500.0,0.00013698,2]
[400435101,1767550235470,-500.0,0.00013699,2]
[400435102,1767550235481,-500.0,0.00013699,2]
[400435103,1767550235491,-500.0,0.00013699,2]
[400435104,1767550235500,-500.0,0.00013699,2]
[400435105,1767550235509,-500.0,0.00013699,2]
[400435106,1767550235519,-500.0,0.00013699,2]
[400435107,1767550235528,-505.8178267,0.00013699,2]
[400435108,1767550235538,-12143.8139578,0.00013699,2]
[400435109,1767550235547,-1051.987599,0.00013699,2]
[400435110,1767550235556,-905.953013,0.00013699,2]
[400435111,1767550235566,-170.332431,0.00013699,2]
[400435112,1767550235576,-1000.0,0.00013699,2]
[400435113,1767550235586,-500.0,0.00013699,2]
[400435114,1767550235595,-500.73288358,0.00013699,2]
[400435115,1767550235604,-565.84046336,0.00013699,2]
[400435116,1767550235614,-500.86295152,0.00013699,2]
[400435117,1767550235624,-500.71714379,0.00013699,2]
[400435118,1767550235633,-500.73320513,0.00013699,2]
[400435119,1767550235642,-500.0,0.00013699,2]
[400435120,1767550235653,-500.0,0.00013699,2]
[400435121,1767550235663,-500.0,0.00013699,2]
[400435122,1767550235672,-500.85765138,0.00013699,2]
[400435123,1767550235686,-501.56829016,0.00013699,2]
[400435124,1767550235696,-500.68695717,0.00013699,2]
[400435125,1767550235707,-501.04423764,0.00013699,2]
[400435126,1767550235717,-504.37236451,0.00013699,2]
[400435127,1767550235727,-501.64231058,0.00013699,2]
[400435128,1767550235736,-501.23587401,0.00013699,2]
[400435129,1767550235747,-500.76727011,0.00013699,2]
[400435130,1767550235756,-500.65442518,0.00013699,2]
[400435131,1767550235766,-500.54648237,0.00013699,2]
[400435132,1767550235775,-501.57510488,0.00013699,2]
[400435133,1767550235784,-500.0,0.00013699,2]
[400435134,1767550235794,-500.68900305,0.00013699,2]
[400435135,1767550235803,-500.0,0.00013699,2]
[400435136,1767550235812,-500.84600982,0.00013699,2]
[400435137,1767550235822,-500.0,0.00013699,2]
[400435138,1767550235831,-540.86402726,0.00013699,2]
[400435139,1767550235842,-500.63204619,0.00013699,2]
[400435140,1767550235851,-500.0,0.00013699,2]
[400435141,1767550235860,-500.0,0.00013699,2]
[400435142,1767550235869,-502.04480355,0.00013699,2]
[400435143,1767550235879,-500.7233053,0.00013699,2]
[400435144,1767550235888,-500.0,0.00013699,2]
[400435145,1767550235898,-500.0,0.00013699,2]
[400435146,1767550235908,-343.49392703,0.00013699,2]
[400435147,1767550235918,-500.0,0.00013699,2]
[400435148,1767550235927,-501.13869568,0.00013699,2]
[400435149,1767550235936,-500.92020919,0.00013699,2]
[400435150,1767550235946,-501.07709958,0.00013699,2]
[400435151,1767550235956,-500.74532212,0.00013699,2]
[400435152,1767550235965,-500.59370123,0.00013699,2]
[400435153,1767550235974,-501.19127842,0.00013699,2]
[400435154,1767550235983,-500.60483179,0.00013699,2]
[400435155,1767550235993,-500.0,0.00013699,2]
[400435156,1767550236002,-500.6911085,0.00013699,2]
[400435157,1767550236011,-500.0,0.00013699,2]
[400435158,1767550236021,-500.0,0.00013699,2]
[400435159,1767550236030,-526.06901587,0.00013699,2]
[400435160,1767550236039,-500.93963039,0.00013699,2]
[400435161,1767550236049,-500.2666594,0.00013699,2]
[400435162,1767550236058,-500.61401424,0.00013699,2]
[400435163,1767550236067,-254.18853098,0.00013699,2]
[400435164,1767550236076,-500.0,0.00013699,2]
[400435165,1767550236085,-500.76143899,0.00013699,2]
[400435166,1767550236094,-500.0,0.00013699,2]
[400435167,1767550236103,-501.17135178,0.00013699,2]
[400435168,1767550236112,-500.0,0.00013699,2]
[400435169,1767550236122,-500.0,0.00013699,2]
[400435170,1767550236131,-500.70390691,0.00013699,2]
[400435171,1767550236140,-500.0,0.00013699,2]
[400435172,1767550236149,-500.0,0.00013699,2]
[400435173,1767550236158,-402.00416541,0.00013699,2]
[400435174,1767550236168,-6135.34419936,0.00013754,2]
[400435175,1767550236178,-151.0,0.000138,2]
[400435176,1767550236188,-177.31363465,0.00013821,2]
[400435177,1767550236198,-500.43463828,0.00013821,2]
[400435178,1767550236207,-559.85540767,0.00013821,2]
[400435179,1767550236216,-500.78852788,0.00013821,2]
[400435180,1767550236226,-503.24529155,0.00013821,2]
[400435181,1767550236235,-1062.49024753,0.00013821,2]
[400435182,1767550236244,-500.40232212,0.00013821,2]
[400435183,1767550236253,-160.8561298,0.00013821,2]
[400435184,1767550236263,-1000.0,0.00013821,2]
[400435185,1767550236273,-1000.55162426,0.00013821,2]
[400435186,1767550236283,-1000.0,0.00013821,2]
[400435187,1767550236293,-1000.73614236,0.00013821,2]
[400435188,1767550236302,-1006.66491172,0.00013821,2]
[400435189,1767550236311,-1000.0,0.00013821,2]
[400435190,1767550236320,-500.54385741,0.00013821,2]
[400435191,1767550236330,-1000.68502209,0.00013821,2]
[400435192,1767550236339,-1000.0,0.00013821,2]
[400435193,1767550236348,-1000.77344969,0.00013821,2]
[400435194,1767550236357,-1000.0,0.00013821,2]
[400435195,1767550236366,-1000.0,0.00013821,2]
[400435196,1767550236377,-1000.0,0.00013821,2]
[400435197,1767550236386,-1000.0,0.00013821,2]
[400435198,1767550236396,-1000.0,0.00013821,2]
[400435199,1767550236405,-1000.0,0.00013821,2]
[400435200,1767550236414,-500.89687559,0.00013821,2]
[400435201,1767550236423,-500.36434968,0.00013821,2]
[400435202,1767550236433,-1000.0,0.00013821,2]
[400435203,1767550236443,-49.26541424,0.00013821,2]
[400435218,1767550241311,-3e-08,9.965e-05,2]
[400435219,1767550241330,-376.89926994,9.965e-05,2]
[400435220,1767550241339,-500.0,9.965e-05,2]
[400435221,1767550241348,-557.92327052,9.965e-05,2]
[400435222,1767550241358,-151.0,0.00010193,2]
[400435223,1767550241368,-151.0,0.00010193,2]
[400435224,1767550241377,-151.0,0.00010193,2]
[400435225,1767550241387,-196.9088468,0.00010193,2]
[400435226,1767550241396,-151.0,0.00010193,2]
[400435227,1767550241408,-2399.08518334,0.00010945,2]
[400435228,1767550241418,-1044.6852423,0.00011121,2]
[400435229,1767550242114,153.0,8.3e-07,2]
[400435230,1767550243201,153.0,8.3e-07,2]
[400435240,1767550244222,153.0,8.3e-07,2]
[400435241,1767550245240,-1354.39994105,0.00011121,2]
[400435242,1767550245249,-300.0,0.00011163,2]
[400435243,1767550245259,-950.73458576,0.00013821,2]
[400435244,1767550245268,-207.18031116,0.00013821,2]
[400435245,1767550245279,-293.68674239,0.00013821,2]
[400435246,1767550245288,-500.41510644,0.00013821,2]
[400435247,1767550245297,-1000.0,0.00013821,2]
[400435248,1767550245307,-1000.0,0.00013821,2]
[400435249,1767550245317,-500.52724424,0.00013821,2]
[400435250,1767550245327,-1000.0,0.00013821,2]
[400435251,1767550245337,-460.22217308,0.00013821,2]
[400435252,1767550245346,-1001.10079319,0.00013821,2]
[400435254,1767550245356,-1000.0,0.00013821,2]
[400435256,1767550245365,-1000.0,0.00013821,2]
[400435257,1767550245375,-1000.0,0.00013821,2]
[400435258,1767550245384,-1000.0,0.00013821,2]
[400435259,1767550245393,-902.33846508,0.00013821,2]
[400435260,1767550245402,-1000.0,0.00013821,2]
[400435261,1767550245411,-1000.0,0.00013821,2]
[400435262,1767550245421,-500.26789632,0.00013821,2]
[400435263,1767550245430,-1000.0,0.00013821,2]
[400435264,1767550245439,-1000.0,0.00013821,2]
[400435265,1767550245448,-936.5523147,0.00013823,2]
[400435266,1767550245459,-303.8391398,0.00013973,2]
[400435267,1767550245468,-303.8391398,0.00013973,2]
[400435268,1767550245477,-303.8391398,0.00013973,2]
[400435269,1767550245486,-303.8391398,0.00013973,2]
[400435270,1767550245495,-303.8391398,0.00013973,2]
[400435271,1767550245504,-618.1668454,0.00013973,2]
[400435272,1767550245513,-482.30601968,0.00013983,2]
[400435273,1767550245522,-151.0,0.00014,2]
[400435274,1767550245531,-28355.36255843,0.00014,2]
[400435275,1767550245540,-713.97283296,0.00014029,2]
[400435276,1767550245550,-1793.77946625,0.00014175,2]
[400435277,1767550245560,-5081.33839875,0.00014175,2]
[400435278,1767550245569,-1000.0,0.00014247,2]
[400435279,1767550245579,-1000.0,0.00014247,2]
[400435280,1767550245589,-1000.0,0.00014247,2]
[400435281,1767550245598,-1000.0,0.00014247,2]
[400435282,1767550245608,-1000.0,0.00014247,2]
[400435283,1767550245617,-1000.0,0.00014247,2]
[400435284,1767550245628,-1000.0,0.00014247,2]
[400435285,1767550245637,-1000.0,0.00014247,2]
[400435286,1767550245647,-1000.0,0.00014247,2]
[400435287,1767550245656,-1000.79952373,0.00014247,2]
[400435288,1767550245666,-1000.0,0.00014247,2]
[400435289,1767550245676,-6725.117865,0.00014354,2]
[400435290,1767550245689,-478.35295088,0.00014368,2]
[400435291,1767550245699,-1500.0,0.00014368,2]
[400435292,1767550245708,-500.0,0.00014368,2]
[400435293,1767550245719,-1000.0,0.00014368,2]
[400435294,1767550245730,-498.85233805,0.00014368,2]
[400435295,1767550245739,-423.32811707,0.00014368,2]
[400435296,1767550245749,-1000.0,0.00014368,2]
[400435297,1767550245760,-1000.0,0.00014368,2]
[400435298,1767550245769,-781.48137907,0.00014368,2]
[400435299,1767550245779,-1500.0,0.00014368,2]
[400435300,1767550245788,-1500.0,0.00014368,2]